[Event "Live Chess"]
[Site "Chess.com"]
[Date "2023.05.21"]
[Round "-"]
[White "domrobson"]
[Black "hturner40"]
[Result "1-0"]
[WhiteElo "1760"]
[BlackElo "1770"]
[TimeControl "300"]
[EndTime "6:13:16 PDT"]
[Termination "domrobson won by resignation"]

1. d4 {[%clk 0:04:58.7]} 1... Nf6 {[%clk 0:04:58.2]} 2. c4 {[%clk 0:04:52.9]}
2... Nc6 {[%clk 0:04:56.4]} 3. Nc3 {[%clk 0:04:48.2]} 3... e5 {[%clk 0:04:54.3]}
4. dxe5 {[%clk 0:04:44]} 4... Nxe5 {[%clk 0:04:52.4]} 5. Bf4 {[%clk 0:04:42.5]}
5... Nxc4 {[%clk 0:04:44.6]} 6. e4 {[%clk 0:04:36.3]} 6... Bb4 {[%clk
0:04:25.8]} 7. Bxc4 {[%clk 0:04:33]} 7... Nxe4 {[%clk 0:04:19.5]} 8. Bd2 {[%clk
0:04:21.8]} 8... Bxc3 {[%clk 0:03:50.6]} 9. Bxc3 {[%clk 0:04:16.2]} 9... Nxc3
{[%clk 0:03:47.8]} 10. bxc3 {[%clk 0:04:14.5]} 10... O-O {[%clk 0:03:45.8]} 11.
Ne2 {[%clk 0:04:14]} 11... c6 {[%clk 0:03:41.9]} 12. O-O {[%clk 0:04:13.2]}
12... d5 {[%clk 0:03:41]} 13. Bd3 {[%clk 0:04:12.6]} 13... Bg4 {[%clk
0:03:35.8]} 14. Qc2 {[%clk 0:04:08]} 14... Re8 {[%clk 0:03:18.1]} 15. Rfe1
{[%clk 0:04:02.5]} 15... g6 {[%clk 0:03:11.9]} 16. Nd4 {[%clk 0:03:58]} 16...
Qb6 {[%clk 0:03:05.5]} 17. Rab1 {[%clk 0:03:52.2]} 17... Rxe1+ {[%clk
0:02:58.8]} 18. Rxe1 {[%clk 0:03:49.6]} 18... Qc5 {[%clk 0:02:47.5]} 19. h3
{[%clk 0:03:45.1]} 19... Bd7 {[%clk 0:02:40.6]} 20. Nb3 {[%clk 0:03:41.3]} 20...
Qd6 {[%clk 0:02:39.1]} 21. Re3 {[%clk 0:03:27.8]} 21... c5 {[%clk 0:02:31.1]}
22. Nd2 {[%clk 0:02:59.4]} 22... d4 {[%clk 0:02:21.9]} 23. cxd4 {[%clk
0:02:58.2]} 23... cxd4 {[%clk 0:02:20.8]} 24. Re1 {[%clk 0:02:52.7]} 24... Rc8
{[%clk 0:02:17.5]} 25. Qb1 {[%clk 0:02:47.6]} 25... Rc3 {[%clk 0:01:38.1]} 26.
Ne4 {[%clk 0:02:43.1]} 26... Qf4 {[%clk 0:01:08.7]} 27. Nxc3 {[%clk 0:02:39.5]}
27... dxc3 {[%clk 0:01:07.5]} 28. Qc2 {[%clk 0:02:36.2]} 1-0

[Event "Live Chess"]
[Site "Chess.com"]
[Date "2023.05.21"]
[Round "-"]
[White "ShanthamGrarks"]
[Black "CheckThis4"]
[Result "0-1"]
[WhiteElo "1963"]
[BlackElo "2521"]
[TimeControl "300"]
[EndTime "6:13:16 PDT"]
[Termination "CheckThis4 won by checkmate"]

1. d4 {[%clk 0:04:52.1]} 1... Nf6 {[%clk 0:04:57.8]} 2. Nc3 {[%clk 0:04:51.3]}
2... d5 {[%clk 0:04:55.1]} 3. e4 {[%clk 0:04:50.7]} 3... Nxe4 {[%clk 0:04:53.9]}
4. Nxe4 {[%clk 0:04:48.9]} 4... dxe4 {[%clk 0:04:53.8]} 5. Bc4 {[%clk
0:04:47.9]} 5... Nc6 {[%clk 0:04:50.1]} 6. c3 {[%clk 0:04:45.8]} 6... e5 {[%clk
0:04:48.7]} 7. d5 {[%clk 0:04:42.1]} 7... Ne7 {[%clk 0:04:45]} 8. f3 {[%clk
0:04:38.9]} 8... Ng6 {[%clk 0:04:41.9]} 9. fxe4 {[%clk 0:04:37.7]} 9... Qh4+
{[%clk 0:04:39.3]} 10. Kf1 {[%clk 0:04:28.3]} 10... Qxe4 {[%clk 0:04:32.5]} 11.
Qb3 {[%clk 0:04:27.3]} 11... Bc5 {[%clk 0:04:20.5]} 12. Nf3 {[%clk 0:04:18.7]}
12... O-O {[%clk 0:04:16.9]} 13. Bd2 {[%clk 0:04:04.6]} 13... Bh3 {[%clk
0:04:10.5]} 14. Re1 {[%clk 0:04:00.5]} 14... Qxf3# {[%clk 0:04:07.6]} 0-1

[Event "Live Chess"]
[Site "Chess.com"]
[Date "2023.05.21"]
[Round "-"]
[White "nigelst"]
[Black "CrypticF1"]
[Result "1-0"]
[WhiteElo "1696"]
[BlackElo "489"]
[TimeControl "300"]
[EndTime "6:13:28 PDT"]
[Termination "nigelst won by checkmate"]

1. e4 {[%clk 0:04:57.6]} 1... c5 {[%clk 0:04:59.5]} 2. Nf3 {[%clk 0:04:56.2]}
2... d6 {[%clk 0:04:59]} 3. Bb5+ {[%clk 0:04:54.8]} 3... Nc6 {[%clk 0:04:58]} 4.
O-O {[%clk 0:04:51.4]} 4... Bg4 {[%clk 0:04:54]} 5. c3 {[%clk 0:04:49.4]} 5...
Bxf3 {[%clk 0:04:53.4]} 6. Qxf3 {[%clk 0:04:47.6]} 6... Nf6 {[%clk 0:04:51.8]}
7. d4 {[%clk 0:04:45.6]} 7... e5 {[%clk 0:04:51]} 8. d5 {[%clk 0:04:44.6]} 8...
g6 {[%clk 0:04:38.8]} 9. dxc6 {[%clk 0:04:42.8]} 9... bxc6 {[%clk 0:04:38.2]}
10. Bxc6+ {[%clk 0:04:41.9]} 10... Nd7 {[%clk 0:04:37.7]} 11. Bxa8 {[%clk
0:04:40.1]} 11... Qxa8 {[%clk 0:04:36.7]} 12. Be3 {[%clk 0:04:36.5]} 12... Be7
{[%clk 0:04:32.5]} 13. Na3 {[%clk 0:04:34.8]} 13... O-O {[%clk 0:04:28.7]} 14.
Rad1 {[%clk 0:04:33.5]} 14... a5 {[%clk 0:04:28.2]} 15. Nb5 {[%clk 0:04:26]}
15... Nb6 {[%clk 0:04:20.6]} 16. Nxd6 {[%clk 0:04:20.6]} 16... Bxd6 {[%clk
0:04:19.2]} 17. Rxd6 {[%clk 0:04:19.1]} 17... Qb8 {[%clk 0:04:15.9]} 18. Bxc5
{[%clk 0:04:14.7]} 18... Nc4 {[%clk 0:04:12.4]} 19. Rfd1 {[%clk 0:04:06.8]}
19... Nxd6 {[%clk 0:04:08.3]} 20. Bxd6 {[%clk 0:04:04.2]} 20... Qxb2 {[%clk
0:04:07]} 21. Bxf8 {[%clk 0:04:01]} 21... Kxf8 {[%clk 0:04:05.4]} 22. h3 {[%clk
0:03:55]} 22... Qxa2 {[%clk 0:04:04.1]} 23. Qf6 {[%clk 0:03:53.2]} 23... a4
{[%clk 0:03:50.7]} 24. Rd8# {[%clk 0:03:49]} 1-0

[Event "Live Chess"]
[Site "Chess.com"]
[Date "2023.05.21"]
[Round "-"]
[White "marcrob"]
[Black "Ian-Morley"]
[Result "1-0"]
[WhiteElo "1147"]
[BlackElo "1058"]
[TimeControl "300"]
[EndTime "6:13:30 PDT"]
[Termination "marcrob won by checkmate"]

1. e4 {[%clk 0:04:58.2]} 1... e5 {[%clk 0:04:58.5]} 2. Nf3 {[%clk 0:04:57]} 2...
Nc6 {[%clk 0:04:57.4]} 3. Bc4 {[%clk 0:04:55.3]} 3... Nf6 {[%clk 0:04:56.6]} 4.
d3 {[%clk 0:04:52.9]} 4... d5 {[%clk 0:04:53.9]} 5. exd5 {[%clk 0:04:50.4]} 5...
Na5 {[%clk 0:04:52.9]} 6. Nxe5 {[%clk 0:04:42.3]} 6... Nxc4 {[%clk 0:04:47.8]}
7. Nxc4 {[%clk 0:04:40.7]} 7... Qe7+ {[%clk 0:04:47]} 8. Be3 {[%clk 0:04:36]}
8... Ng4 {[%clk 0:04:44.2]} 9. O-O {[%clk 0:04:29.6]} 9... Nxe3 {[%clk
0:04:43.1]} 10. fxe3 {[%clk 0:04:24.7]} 10... b5 {[%clk 0:04:40.8]} 11. Ncd2
{[%clk 0:03:51.3]} 11... Qxe3+ {[%clk 0:04:32.9]} 12. Kh1 {[%clk 0:03:49]} 12...
Qh6 {[%clk 0:04:24.7]} 13. Qe2+ {[%clk 0:03:42.5]} 13... Be7 {[%clk 0:04:22.2]}
14. Re1 {[%clk 0:03:41.4]} 14... Qf6 {[%clk 0:04:18.4]} 15. Ne4 {[%clk
0:03:25.7]} 15... Qxb2 {[%clk 0:04:14.8]} 16. Nf6+ {[%clk 0:03:16.3]} 16... gxf6
{[%clk 0:04:12.9]} 17. Qxe7# {[%clk 0:03:14.7]} 1-0

[Event "Live Chess"]
[Site "Chess.com"]
[Date "2023.05.21"]
[Round "-"]
[White "Alfiedog12"]
[Black "DoYouLikeCurry"]
[Result "0-1"]
[WhiteElo "918"]
[BlackElo "1447"]
[TimeControl "300"]
[EndTime "6:13:36 PDT"]
[Termination "DoYouLikeCurry won by resignation"]

1. d4 {[%clk 0:04:57.3]} 1... d5 {[%clk 0:04:58.7]} 2. Bf4 {[%clk 0:04:56.7]}
2... Nf6 {[%clk 0:04:57]} 3. Nf3 {[%clk 0:04:56.1]} 3... c5 {[%clk 0:04:56]} 4.
c3 {[%clk 0:04:53.6]} 4... Nc6 {[%clk 0:04:53.3]} 5. Nbd2 {[%clk 0:04:52.1]}
5... Qb6 {[%clk 0:04:50.1]} 6. Qc2 {[%clk 0:04:47.9]} 6... e6 {[%clk 0:04:48.7]}
7. e3 {[%clk 0:04:43.8]} 7... cxd4 {[%clk 0:04:47.7]} 8. exd4 {[%clk 0:04:42.1]}
8... Bd7 {[%clk 0:04:46.9]} 9. Bd3 {[%clk 0:04:33.9]} 9... Rc8 {[%clk
0:04:45.7]} 10. Qb3 {[%clk 0:04:27.7]} 10... Qxb3 {[%clk 0:04:40.8]} 11. Nxb3
{[%clk 0:04:25.4]} 11... Be7 {[%clk 0:04:36.6]} 12. O-O-O {[%clk 0:04:12.9]}
12... O-O {[%clk 0:04:34.5]} 13. h4 {[%clk 0:04:07.1]} 13... a5 {[%clk
0:04:20.4]} 14. a3 {[%clk 0:03:54.9]} 14... Ng4 {[%clk 0:03:43.9]} 15. Bg3
{[%clk 0:03:45]} 15... Ra8 {[%clk 0:03:34.2]} 16. Kb1 {[%clk 0:03:29.8]} 16...
a4 {[%clk 0:03:27.5]} 17. Nc5 {[%clk 0:03:21.8]} 17... Bxc5 {[%clk 0:03:27.1]}
18. dxc5 {[%clk 0:03:20.8]} 18... Na5 {[%clk 0:03:21.4]} 19. Ne5 {[%clk
0:03:04.1]} 19... Nxe5 {[%clk 0:03:18.3]} 20. Bxe5 {[%clk 0:03:02.7]} 20... Rfc8
{[%clk 0:03:15.5]} 21. Bd6 {[%clk 0:02:57.3]} 21... Nb3 {[%clk 0:03:12.1]} 22.
g4 {[%clk 0:02:33.1]} 22... Nxc5 {[%clk 0:03:08.1]} 23. g5 {[%clk 0:02:15.8]}
23... Nxd3 {[%clk 0:02:55]} 24. Rxd3 {[%clk 0:02:14]} 24... Bb5 {[%clk
0:02:48.4]} 25. Rf3 {[%clk 0:02:06]} 25... d4 {[%clk 0:02:45.2]} 26. cxd4 {[%clk
0:01:55.3]} 26... Bc6 {[%clk 0:02:44.4]} 27. Rc3 {[%clk 0:01:53.5]} 27... Bxh1
{[%clk 0:02:41.5]} 28. Rxc8+ {[%clk 0:01:44.9]} 28... Rxc8 {[%clk 0:02:40.3]}
29. Be5 {[%clk 0:01:41.8]} 29... Bf3 {[%clk 0:02:27.6]} 30. g6 {[%clk
0:01:35.8]} 30... hxg6 {[%clk 0:02:23.8]} 31. Bg3 {[%clk 0:01:30.2]} 31... Be4+
{[%clk 0:02:16]} 32. Ka1 {[%clk 0:01:28.6]} 32... Rc1+ {[%clk 0:02:15.1]} 33.
Ka2 {[%clk 0:01:27.8]} 33... Bd5+ {[%clk 0:02:14.4]} 34. b3 {[%clk 0:01:26]}
34... axb3+ {[%clk 0:02:12.2]} 35. Kb2 {[%clk 0:01:23.1]} 35... Rc2+ {[%clk
0:02:10.6]} 36. Kb1 {[%clk 0:01:20.1]} 36... Rd2 {[%clk 0:02:05.5]} 37. Kc1
{[%clk 0:01:17.4]} 37... Rxd4 {[%clk 0:02:04]} 38. Be5 {[%clk 0:01:14.1]} 38...
Rxh4 {[%clk 0:01:59.9]} 39. a4 {[%clk 0:01:10.2]} 39... Rh1+ {[%clk 0:01:54.7]}
40. Kb2 {[%clk 0:01:08.3]} 40... Rf1 {[%clk 0:01:52.4]} 41. f4 {[%clk
0:01:05.8]} 41... f6 {[%clk 0:01:50.7]} 42. Bc3 {[%clk 0:00:58.8]} 42... Rxf4
{[%clk 0:01:48.7]} 43. Bd2 {[%clk 0:00:55.1]} 43... Rxa4 {[%clk 0:01:47.5]} 0-1

[Event "Live Chess"]
[Site "Chess.com"]
[Date "2023.05.21"]
[Round "-"]
[White "davigator"]
[Black "Hussamalhaidar"]
[Result "1-0"]
[WhiteElo "2313"]
[BlackElo "1119"]
[TimeControl "300"]
[EndTime "6:13:38 PDT"]
[Termination "davigator won by checkmate"]

1. e4 {[%clk 0:04:57.1]} 1... b6 {[%clk 0:04:57.6]} 2. d4 {[%clk 0:04:54.1]}
2... Bb7 {[%clk 0:04:56.5]} 3. Nc3 {[%clk 0:04:53.3]} 3... e6 {[%clk 0:04:54.5]}
4. a3 {[%clk 0:04:52]} 4... d5 {[%clk 0:04:52.1]} 5. e5 {[%clk 0:04:46.9]} 5...
c5 {[%clk 0:04:50.4]} 6. Nf3 {[%clk 0:04:41.5]} 6... Nc6 {[%clk 0:04:47.8]} 7.
Bf4 {[%clk 0:04:38.7]} 7... cxd4 {[%clk 0:04:44.2]} 8. Nxd4 {[%clk 0:04:37.1]}
8... Bc5 {[%clk 0:04:36.1]} 9. Bb5 {[%clk 0:04:34.4]} 9... Ne7 {[%clk 0:04:29]}
10. Nxc6 {[%clk 0:04:29.2]} 10... Bxc6 {[%clk 0:04:23.8]} 11. b4 {[%clk
0:04:26.4]} 11... Bxb4 {[%clk 0:04:09.4]} 12. axb4 {[%clk 0:04:24.9]} 12... d4
{[%clk 0:03:59]} 13. Bxc6+ {[%clk 0:04:21]} 13... Nxc6 {[%clk 0:03:55.1]} 14.
Ne4 {[%clk 0:04:20.1]} 14... O-O {[%clk 0:03:45.4]} 15. b5 {[%clk 0:04:16.9]}
15... Nb4 {[%clk 0:03:38.6]} 16. Qd2 {[%clk 0:04:09.1]} 16... Nd5 {[%clk
0:03:34.2]} 17. O-O {[%clk 0:04:05.1]} 17... Rc8 {[%clk 0:03:31]} 18. Nd6 {[%clk
0:04:03]} 18... Nxf4 {[%clk 0:03:20.3]} 19. Qxf4 {[%clk 0:04:00.9]} 19... Rxc2
{[%clk 0:03:14.8]} 20. Rxa7 {[%clk 0:03:59.6]} 20... d3 {[%clk 0:02:52]} 21. Qe4
{[%clk 0:03:50.8]} 21... Rc3 {[%clk 0:02:25.8]} 22. Qd4 {[%clk 0:03:47.3]} 22...
Rc7 {[%clk 0:02:12.5]} 23. Ra6 {[%clk 0:03:38.8]} 23... Rc5 {[%clk 0:02:04.4]}
24. f4 {[%clk 0:03:36.2]} 24... Rxb5 {[%clk 0:01:57.6]} 25. Nxb5 {[%clk
0:03:34.2]} 25... Qxd4+ {[%clk 0:01:54]} 26. Nxd4 {[%clk 0:03:33]} 26... Rd8
{[%clk 0:01:52.7]} 27. Rd1 {[%clk 0:03:30.3]} 27... g6 {[%clk 0:01:48.2]} 28.
Nf3 {[%clk 0:03:28.1]} 28... h6 {[%clk 0:01:43.5]} 29. Rxb6 {[%clk 0:03:26.6]}
29... Kg7 {[%clk 0:01:39.3]} 30. Rd6 {[%clk 0:03:24.8]} 30... Ra8 {[%clk
0:01:35.1]} 31. R1xd3 {[%clk 0:03:24.2]} 31... Ra1+ {[%clk 0:01:33.5]} 32. Rd1
{[%clk 0:03:23.5]} 32... Ra4 {[%clk 0:01:31.6]} 33. g3 {[%clk 0:03:22.1]} 33...
h5 {[%clk 0:01:28.9]} 34. h4 {[%clk 0:03:20.5]} 34... Ra3 {[%clk 0:01:25.4]} 35.
Kf2 {[%clk 0:03:18.4]} 35... Ra2+ {[%clk 0:01:23.9]} 36. R1d2 {[%clk 0:03:17.2]}
36... Ra1 {[%clk 0:01:21.2]} 37. Rd7 {[%clk 0:03:16]} 37... Ra3 {[%clk 0:01:17]}
38. Ng5 {[%clk 0:03:14.5]} 38... Kf8 {[%clk 0:00:53.5]} 39. Rxf7+ {[%clk
0:03:10.9]} 39... Kg8 {[%clk 0:00:49]} 40. Rb7 {[%clk 0:03:07.7]} 40... Ra4
{[%clk 0:00:44.9]} 41. Rd8# {[%clk 0:03:05.3]} 1-0

[Event "Live Chess"]
[Site "Chess.com"]
[Date "2023.05.21"]
[Round "-"]
[White "Geomorph"]
[Black "mliszewski"]
[Result "0-1"]
[WhiteElo "1276"]
[BlackElo "1798"]
[TimeControl "300"]
[EndTime "6:13:46 PDT"]
[Termination "mliszewski won by resignation"]

1. e4 {[%clk 0:04:59]} 1... c6 {[%clk 0:04:58.9]} 2. d4 {[%clk 0:04:56.7]} 2...
d5 {[%clk 0:04:58.8]} 3. Nc3 {[%clk 0:04:55.6]} 3... dxe4 {[%clk 0:04:58]} 4.
Nxe4 {[%clk 0:04:55.3]} 4... Nf6 {[%clk 0:04:57.7]} 5. Nxf6+ {[%clk 0:04:54.2]}
5... exf6 {[%clk 0:04:57.6]} 6. c3 {[%clk 0:04:48.2]} 6... Bd6 {[%clk
0:04:56.5]} 7. Bd3 {[%clk 0:04:47.2]} 7... O-O {[%clk 0:04:55.9]} 8. Qc2 {[%clk
0:04:46.4]} 8... Re8+ {[%clk 0:04:55.2]} 9. Ne2 {[%clk 0:04:46]} 9... h5 {[%clk
0:04:54.5]} 10. O-O {[%clk 0:04:33.2]} 10... h4 {[%clk 0:04:52.7]} 11. h3 {[%clk
0:04:31.3]} 11... Nd7 {[%clk 0:04:52.2]} 12. Nf4 {[%clk 0:04:27]} 12... Nf8
{[%clk 0:04:48.2]} 13. Qb3 {[%clk 0:04:21.5]} 13... Qc7 {[%clk 0:04:42.6]} 14.
Nh5 {[%clk 0:04:16.1]} 14... Ng6 {[%clk 0:04:33]} 15. Bxg6 {[%clk 0:04:06.9]}
15... Be6 {[%clk 0:04:31.7]} 16. Qc2 {[%clk 0:04:02.2]} 16... fxg6 {[%clk
0:04:30.3]} 17. Qxg6 {[%clk 0:04:01.2]} 17... Qf7 {[%clk 0:04:24.9]} 18. Qxf7+
{[%clk 0:03:54.4]} 18... Bxf7 {[%clk 0:04:23.7]} 19. Nf4 {[%clk 0:03:54]} 19...
g5 {[%clk 0:04:21.8]} 20. Nd3 {[%clk 0:03:50.9]} 20... Bg6 {[%clk 0:04:18.7]}
21. Ne1 {[%clk 0:03:45.4]} 21... Re2 {[%clk 0:04:16.6]} 22. Nf3 {[%clk
0:03:42.6]} 22... Rae8 {[%clk 0:04:13.3]} 23. Be3 {[%clk 0:03:39.2]} 23... Rxb2
{[%clk 0:04:10.5]} 24. Rfb1 {[%clk 0:03:37.3]} 24... Bxb1 {[%clk 0:04:08.8]} 0-1

[Event "Live Chess"]
[Site "Chess.com"]
[Date "2023.05.21"]
[Round "-"]
[White "tpm07"]
[Black "jumush"]
[Result "1-0"]
[WhiteElo "1946"]
[BlackElo "1723"]
[TimeControl "300"]
[EndTime "6:13:47 PDT"]
[Termination "tpm07 won by resignation"]

1. e4 {[%clk 0:04:58.1]} 1... d5 {[%clk 0:04:57.3]} 2. Nc3 {[%clk 0:04:55.4]}
2... dxe4 {[%clk 0:04:55.5]} 3. Nxe4 {[%clk 0:04:52.4]} 3... Qd5 {[%clk
0:04:53.3]} 4. Nc3 {[%clk 0:04:49]} 4... Qa5 {[%clk 0:04:51.2]} 5. d4 {[%clk
0:04:48.2]} 5... Nf6 {[%clk 0:04:48.7]} 6. Bd2 {[%clk 0:04:47.5]} 6... Bg4
{[%clk 0:04:44.1]} 7. Be2 {[%clk 0:04:40.9]} 7... Bxe2 {[%clk 0:04:41.4]} 8.
Qxe2 {[%clk 0:04:38.3]} 8... Qb6 {[%clk 0:04:39.2]} 9. O-O-O {[%clk 0:04:33.9]}
9... Nc6 {[%clk 0:04:37]} 10. Be3 {[%clk 0:04:23.4]} 10... Qa5 {[%clk
0:04:18.9]} 11. d5 {[%clk 0:04:20.4]} 11... Nb4 {[%clk 0:04:16.8]} 12. Qc4
{[%clk 0:04:09]} 12... Na6 {[%clk 0:04:03.9]} 13. Nf3 {[%clk 0:03:57.7]} 13...
h6 {[%clk 0:04:01.4]} 14. Ne5 {[%clk 0:03:46.5]} 14... Nd7 {[%clk 0:03:52.6]}
15. Nxd7 {[%clk 0:03:35.1]} 15... Kxd7 {[%clk 0:03:50.7]} 16. Qg4+ {[%clk
0:03:29]} 16... Ke8 {[%clk 0:03:40.5]} 17. Rhe1 {[%clk 0:03:24.4]} 17... Rd8
{[%clk 0:03:34.6]} 18. Kb1 {[%clk 0:03:01.3]} 18... Nc5 {[%clk 0:03:12.5]} 19.
Bd4 {[%clk 0:02:34]} 19... a6 {[%clk 0:02:49.4]} 20. Qe2 {[%clk 0:02:15.7]}
20... Rg8 {[%clk 0:02:38]} 21. Qe3 {[%clk 0:02:06.6]} 21... Nd7 {[%clk 0:02:35]}
22. Ne4 {[%clk 0:01:55.5]} 22... Qxd5 {[%clk 0:02:26.5]} 23. Bxg7 {[%clk
0:01:42.8]} 23... Qxd1+ {[%clk 0:02:07.7]} 24. Rxd1 {[%clk 0:01:37.3]} 24...
Rxg7 {[%clk 0:02:05]} 25. g3 {[%clk 0:01:09.4]} 25... Rg6 {[%clk 0:02:01.1]} 26.
f4 {[%clk 0:01:05.6]} 26... Re6 {[%clk 0:01:58.8]} 27. f5 {[%clk 0:01:04.1]}
27... Re5 {[%clk 0:01:53.7]} 28. Qf4 {[%clk 0:00:57.2]} 28... Bg7 {[%clk
0:01:38.9]} 29. f6 {[%clk 0:00:49.7]} 29... exf6 {[%clk 0:01:35.2]} 30. Nc3
{[%clk 0:00:35.2]} 30... Kf8 {[%clk 0:01:31.5]} 31. Qb4+ {[%clk 0:00:28]} 31...
Kg8 {[%clk 0:01:24]} 32. Qxb7 {[%clk 0:00:25.2]} 32... Kh7 {[%clk 0:01:16.6]}
33. Qxc7 {[%clk 0:00:22.4]} 1-0

[Event "Live Chess"]
[Site "Chess.com"]
[Date "2023.05.21"]
[Round "-"]
[White "EdenHazard8"]
[Black "Ferrarifan27"]
[Result "1-0"]
[WhiteElo "1963"]
[BlackElo "2065"]
[TimeControl "300"]
[EndTime "6:13:54 PDT"]
[Termination "EdenHazard8 won by checkmate"]

1. e4 {[%clk 0:04:58.5]} 1... e5 {[%clk 0:04:58.6]} 2. Nf3 {[%clk 0:04:56.9]}
2... Nc6 {[%clk 0:04:57.8]} 3. Bc4 {[%clk 0:04:55.9]} 3... Bc5 {[%clk 0:04:56]}
4. O-O {[%clk 0:04:52.9]} 4... d6 {[%clk 0:04:54.6]} 5. h3 {[%clk 0:04:51]} 5...
Nf6 {[%clk 0:04:52.5]} 6. d3 {[%clk 0:04:50.4]} 6... O-O {[%clk 0:04:48]} 7. a3
{[%clk 0:04:49.6]} 7... h6 {[%clk 0:04:43.1]} 8. b4 {[%clk 0:04:44.5]} 8... Bb6
{[%clk 0:04:41.4]} 9. Be3 {[%clk 0:04:43.2]} 9... Bxe3 {[%clk 0:04:32.7]} 10.
fxe3 {[%clk 0:04:43.1]} 10... d5 {[%clk 0:04:27.9]} 11. exd5 {[%clk 0:04:36.3]}
11... Nxd5 {[%clk 0:04:27.8]} 12. Bxd5 {[%clk 0:04:35.8]} 12... Qxd5 {[%clk
0:04:26.2]} 13. Nc3 {[%clk 0:04:35.6]} 13... Qd6 {[%clk 0:04:21.7]} 14. Nb5
{[%clk 0:04:28.3]} 14... Qe7 {[%clk 0:04:17.3]} 15. Qe1 {[%clk 0:04:26.3]} 15...
a6 {[%clk 0:04:15.1]} 16. Nc3 {[%clk 0:04:23.9]} 16... Be6 {[%clk 0:04:10.9]}
17. Qg3 {[%clk 0:04:19]} 17... f6 {[%clk 0:03:45.9]} 18. Nh4 {[%clk 0:04:15.8]}
18... Rfd8 {[%clk 0:03:39.7]} 19. Ne4 {[%clk 0:04:12.9]} 19... Kh7 {[%clk
0:03:14.7]} 20. Qg6+ {[%clk 0:04:10.3]} 20... Kh8 {[%clk 0:03:13.3]} 21. Nxf6
{[%clk 0:04:05.1]} 21... gxf6 {[%clk 0:03:12.3]} 22. Qxh6+ {[%clk 0:04:03.7]}
22... Kg8 {[%clk 0:02:52.1]} 23. Rxf6 {[%clk 0:03:56]} 23... Bf7 {[%clk
0:02:45.9]} 24. Nf5 {[%clk 0:03:51]} 24... Qf8 {[%clk 0:02:40.7]} 25. Qg5+
{[%clk 0:03:49.6]} 25... Kh7 {[%clk 0:02:35.8]} 26. Rh6+ {[%clk 0:03:48.2]}
26... Qxh6 {[%clk 0:02:34.8]} 27. Qxh6+ {[%clk 0:03:48.1]} 27... Kg8 {[%clk
0:02:34.1]} 28. Qg7# {[%clk 0:03:48]} 1-0

[Event "Live Chess"]
[Site "Chess.com"]
[Date "2023.05.21"]
[Round "-"]
[White "SavagePawn7"]
[Black "LiamClery2020"]
[Result "0-1"]
[WhiteElo "789"]
[BlackElo "1966"]
[TimeControl "300"]
[EndTime "6:13:54 PDT"]
[Termination "LiamClery2020 won by checkmate"]

1. e4 {[%clk 0:04:56.8]} 1... Nf6 {[%clk 0:04:59.9]} 2. Nc3 {[%clk 0:04:53.1]}
2... e5 {[%clk 0:04:59]} 3. Nf3 {[%clk 0:04:45.9]} 3... Nc6 {[%clk 0:04:52.1]}
4. d4 {[%clk 0:04:42.5]} 4... exd4 {[%clk 0:04:50.7]} 5. Nxd4 {[%clk 0:04:40.9]}
5... Bb4 {[%clk 0:04:44.8]} 6. Nxc6 {[%clk 0:04:36.7]} 6... bxc6 {[%clk
0:04:43.7]} 7. Bd2 {[%clk 0:04:32]} 7... O-O {[%clk 0:04:40.6]} 8. a3 {[%clk
0:04:30]} 8... Bxc3 {[%clk 0:04:38.9]} 9. Bxc3 {[%clk 0:04:29]} 9... Nxe4 {[%clk
0:04:38.8]} 10. Bd3 {[%clk 0:04:18.7]} 10... Nxc3 {[%clk 0:04:36.1]} 11. bxc3
{[%clk 0:04:08.8]} 11... Re8+ {[%clk 0:04:34.3]} 12. Kf1 {[%clk 0:04:05.4]}
12... d5 {[%clk 0:04:31.2]} 13. Qh5 {[%clk 0:03:55.5]} 13... g6 {[%clk
0:04:29.2]} 14. Qf3 {[%clk 0:03:26.4]} 14... Be6 {[%clk 0:04:24.8]} 15. Re1
{[%clk 0:03:22.2]} 15... Qd7 {[%clk 0:04:22.1]} 16. g3 {[%clk 0:03:15.2]} 16...
Bh3+ {[%clk 0:04:19.7]} 17. Kg1 {[%clk 0:03:12.6]} 17... Rxe1+ {[%clk
0:04:16.5]} 18. Bf1 {[%clk 0:03:07.2]} 18... Rxf1# {[%clk 0:04:16.4]} 0-1

[Event "Live Chess"]
[Site "Chess.com"]
[Date "2023.05.21"]
[Round "-"]
[White "domrobson"]
[Black "PantherCal"]
[Result "0-1"]
[WhiteElo "1753"]
[BlackElo "1807"]
[TimeControl "300"]
[EndTime "6:13:57 PDT"]
[Termination "PantherCal won by resignation"]

1. d4 {[%clk 0:04:58.1]} 1... d5 {[%clk 0:04:58.2]} 2. c4 {[%clk 0:04:56.9]}
2... c6 {[%clk 0:04:58.1]} 3. Nf3 {[%clk 0:04:55.6]} 3... Nf6 {[%clk 0:04:57.5]}
4. Nc3 {[%clk 0:04:54.8]} 4... e6 {[%clk 0:04:56.3]} 5. Bg5 {[%clk 0:04:53.7]}
5... Be7 {[%clk 0:04:55.7]} 6. e3 {[%clk 0:04:52]} 6... Nbd7 {[%clk 0:04:54.8]}
7. Rc1 {[%clk 0:04:50.1]} 7... O-O {[%clk 0:04:54.4]} 8. Bd3 {[%clk 0:04:49.3]}
8... dxc4 {[%clk 0:04:52.7]} 9. Bxc4 {[%clk 0:04:48.6]} 9... b5 {[%clk
0:04:52.6]} 10. Bd3 {[%clk 0:04:48.1]} 10... a6 {[%clk 0:04:52.4]} 11. O-O
{[%clk 0:04:47.3]} 11... Bb7 {[%clk 0:04:52]} 12. Ne4 {[%clk 0:04:46.8]} 12...
Rc8 {[%clk 0:04:45.7]} 13. Nc5 {[%clk 0:04:45.4]} 13... Nxc5 {[%clk 0:04:44.7]}
14. Rxc5 {[%clk 0:04:44.2]} 14... Bxc5 {[%clk 0:04:42.8]} 0-1